[Event "Early-Titled-Tuesday-Blitz-January-30-2024"]
[Site "Chess.com"]
[Date "2024.01.30"]
[Round "11"]
[White "tuschessCM1"]
[Black "AustinThomas12345"]
[Result "1-0"]
[WhiteElo "2679"]
[BlackElo "2511"]
[TimeControl "180+1"]
[EndTime "10:10:40 PST"]
[Termination "tuschessCM1 won by resignation"]

1. c4 {[%clk 0:03:00.9]} 1... Nf6 {[%clk 0:02:54.4]} 2. Nc3 {[%clk 0:03:00.9]}
2... d5 {[%clk 0:02:54.3]} 3. cxd5 {[%clk 0:03:00.9]} 3... Nxd5 {[%clk
0:02:55.2]} 4. Nf3 {[%clk 0:03:01.5]} 4... g6 {[%clk 0:02:54.1]} 5. h4 {[%clk
0:02:59.1]} 5... Bg7 {[%clk 0:02:40]} 6. e4 {[%clk 0:02:56.8]} 6... Nxc3 {[%clk
0:02:38.4]} 7. dxc3 {[%clk 0:02:57.7]} 7... Qxd1+ {[%clk 0:02:38.4]} 8. Kxd1
{[%clk 0:02:58.6]} 8... f6 {[%clk 0:02:34]} 9. Bc4 {[%clk 0:02:54]} 9... e5
{[%clk 0:02:29.1]} 10. Kc2 {[%clk 0:02:48.4]} 10... Ke7 {[%clk 0:02:15.7]} 11.
Be3 {[%clk 0:02:39.9]} 11... b6 {[%clk 0:02:13.7]} 12. h5 {[%clk 0:02:31.9]}
12... Be6 {[%clk 0:02:05.8]} 13. Nd2 {[%clk 0:02:27.7]} 13... Bxc4 {[%clk
0:02:04.5]} 14. Nxc4 {[%clk 0:02:28.6]} 14... Nc6 {[%clk 0:01:57.4]} 15. b4
{[%clk 0:02:23.2]} 15... a6 {[%clk 0:01:50.9]} 16. a4 {[%clk 0:02:21.9]} 16...
Ke6 {[%clk 0:01:45.9]} 17. a5 {[%clk 0:02:16.8]} 17... b5 {[%clk 0:01:42.7]} 18.
Nd2 {[%clk 0:02:16.5]} 18... Rhd8 {[%clk 0:01:29.8]} 19. Nb3 {[%clk 0:02:08.9]}
19... Bf8 {[%clk 0:01:28.2]} 20. hxg6 {[%clk 0:01:53.7]} 20... hxg6 {[%clk
0:01:29.1]} 21. Rh7 {[%clk 0:01:54.2]} 21... Rd7 {[%clk 0:01:25.3]} 22. Rh8
{[%clk 0:01:52.1]} 22... Rad8 {[%clk 0:01:22.2]} 23. Rah1 {[%clk 0:01:51.7]}
23... Be7 {[%clk 0:01:12]} 24. R8h6 {[%clk 0:01:48.3]} 24... Rg8 {[%clk
0:01:02]} 25. Bc5 {[%clk 0:01:44.3]} 25... Kf7 {[%clk 0:00:56.9]} 26. Bxe7
{[%clk 0:01:38.9]} 26... Nxe7 {[%clk 0:00:55.2]} 27. Nc5 {[%clk 0:01:38.7]}
27... Rd6 {[%clk 0:00:54.8]} 28. Rh7+ {[%clk 0:01:36.1]} 28... Rg7 {[%clk
0:00:55.1]} 29. Rh8 {[%clk 0:01:36.3]} 29... f5 {[%clk 0:00:51.5]} 30. Ra8
{[%clk 0:01:32]} 30... fxe4 {[%clk 0:00:50.2]} 31. Nxe4 {[%clk 0:01:29.5]} 31...
Rc6 {[%clk 0:00:50.7]} 32. Nc5 {[%clk 0:01:29.9]} 32... Rf6 {[%clk 0:00:44.1]}
33. f3 {[%clk 0:01:27.4]} 33... Nd5 {[%clk 0:00:43]} 34. Re1 {[%clk 0:01:22.7]}
34... Rh7 {[%clk 0:00:39.2]} 35. Rxe5 {[%clk 0:01:20.8]} 35... c6 {[%clk
0:00:32.9]} 36. Ra7+ {[%clk 0:01:17]} 1-0

[Event "Early-Titled-Tuesday-Blitz-January-30-2024"]
[Site "Chess.com"]
[Date "2024.01.30"]
[Round "11"]
[White "bilosuvenosu06"]
[Black "cthulhuuu"]
[Result "1-0"]
[WhiteElo "2550"]
[BlackElo "2378"]
[TimeControl "180+1"]
[EndTime "10:10:40 PST"]
[Termination "bilosuvenosu06 won on time"]

1. d4 {[%clk 0:03:00.9]} 1... Nf6 {[%clk 0:02:59.9]} 2. c4 {[%clk 0:03:01]} 2...
e5 {[%clk 0:03:00.1]} 3. d5 {[%clk 0:02:59.6]} 3... Bc5 {[%clk 0:02:59.6]} 4.
Nc3 {[%clk 0:02:59.6]} 4... c6 {[%clk 0:02:59.2]} 5. e4 {[%clk 0:02:54]} 5...
O-O {[%clk 0:02:55.3]} 6. Be2 {[%clk 0:02:45.9]} 6... d6 {[%clk 0:02:46.1]} 7.
Bf3 {[%clk 0:02:45]} 7... cxd5 {[%clk 0:02:20.6]} 8. cxd5 {[%clk 0:02:44.9]}
8... a6 {[%clk 0:02:21]} 9. Nge2 {[%clk 0:02:41.8]} 9... b5 {[%clk 0:02:21]} 10.
Ng3 {[%clk 0:02:41.8]} 10... Qb6 {[%clk 0:02:11.8]} 11. O-O {[%clk 0:02:41.2]}
11... a5 {[%clk 0:02:12.3]} 12. Be2 {[%clk 0:02:34.7]} 12... Bd7 {[%clk
0:02:03.4]} 13. Bg5 {[%clk 0:02:25.3]} 13... b4 {[%clk 0:01:25.2]} 14. Nb1
{[%clk 0:02:13.4]} 14... Qd8 {[%clk 0:01:22.8]} 15. Nh5 {[%clk 0:02:11]} 15...
Kh8 {[%clk 0:01:11.2]} 16. Bxf6 {[%clk 0:02:08.6]} 16... gxf6 {[%clk 0:01:11.3]}
17. Bg4 {[%clk 0:02:05.7]} 17... f5 {[%clk 0:01:04.6]} 18. Bxf5 {[%clk
0:01:59.8]} 18... Qg5 {[%clk 0:01:04.7]} 19. Ng3 {[%clk 0:01:53.9]} 19... Rg8
{[%clk 0:00:54]} 20. Nd2 {[%clk 0:01:49.5]} 20... Qf4 {[%clk 0:00:20.8]} 21. Qe2
{[%clk 0:01:39.4]} 21... a4 {[%clk 0:00:17.4]} 22. Nc4 {[%clk 0:01:27.9]} 22...
Bd4 {[%clk 0:00:12.7]} 23. Nxd6 {[%clk 0:01:24.6]} 23... Qh6 {[%clk 0:00:12.8]}
24. Nxf7+ {[%clk 0:01:24.5]} 1-0

[Event "Early-Titled-Tuesday-Blitz-January-30-2024"]
[Site "Chess.com"]
[Date "2024.01.30"]
[Round "11"]
[White "GeorgiosSouleidis"]
[Black "tusplingher"]
[Result "1-0"]
[WhiteElo "2652"]
[BlackElo "2489"]
[TimeControl "180+1"]
[EndTime "10:10:48 PST"]
[Termination "GeorgiosSouleidis won by resignation"]

1. e4 {[%clk 0:03:00.9]} 1... c5 {[%clk 0:02:59.9]} 2. Be2 {[%clk 0:03:00.5]}
2... Nc6 {[%clk 0:02:55.5]} 3. d3 {[%clk 0:03:00.5]} 3... g6 {[%clk 0:02:54.8]}
4. f4 {[%clk 0:03:01.1]} 4... Bg7 {[%clk 0:02:54.6]} 5. Nf3 {[%clk 0:03:02]}
5... d6 {[%clk 0:02:46.6]} 6. O-O {[%clk 0:03:01.7]} 6... Nf6 {[%clk 0:02:45]}
7. c3 {[%clk 0:03:02.2]} 7... O-O {[%clk 0:02:42.5]} 8. Kh1 {[%clk 0:03:02.8]}
8... b5 {[%clk 0:02:31.2]} 9. a3 {[%clk 0:03:02.3]} 9... a5 {[%clk 0:02:27.9]}
10. Be3 {[%clk 0:03:02.6]} 10... Rb8 {[%clk 0:02:26.3]} 11. Nbd2 {[%clk
0:03:02.3]} 11... b4 {[%clk 0:02:10.2]} 12. d4 {[%clk 0:03:02.3]} 12... bxc3
{[%clk 0:02:05]} 13. bxc3 {[%clk 0:03:03.2]} 13... cxd4 {[%clk 0:02:04.8]} 14.
cxd4 {[%clk 0:03:04.1]} 14... d5 {[%clk 0:02:04.9]} 15. e5 {[%clk 0:03:04.3]}
15... Ne4 {[%clk 0:01:46.2]} 16. Nxe4 {[%clk 0:03:04.6]} 16... dxe4 {[%clk
0:01:46.2]} 17. Ng5 {[%clk 0:03:05.3]} 17... Qd5 {[%clk 0:01:22.8]} 18. Rc1
{[%clk 0:03:03.9]} 18... Qb3 {[%clk 0:00:53.9]} 19. Qd2 {[%clk 0:02:25.3]} 19...
Bb7 {[%clk 0:00:31.6]} 20. Rc3 {[%clk 0:02:15.7]} 20... Qd5 {[%clk 0:00:25.5]}
21. Bc4 {[%clk 0:02:13.6]} 21... Qd8 {[%clk 0:00:25.1]} 22. d5 {[%clk
0:02:11.6]} 22... Nxe5 {[%clk 0:00:11.5]} 23. fxe5 {[%clk 0:02:11.8]} 23... Bxe5
{[%clk 0:00:12.4]} 24. Bd4 {[%clk 0:02:04.5]} 24... Qd6 {[%clk 0:00:12.4]} 25.
Nxe4 {[%clk 0:02:01.8]} 25... Qc7 {[%clk 0:00:10.5]} 26. Ba2 {[%clk 0:01:42.6]}
26... Bf4 {[%clk 0:00:03.7]} 27. Qxf4 {[%clk 0:01:36.9]} 27... Qd7 {[%clk
0:00:03.9]} 28. Nf6+ {[%clk 0:01:19.2]} 28... exf6 {[%clk 0:00:03.6]} 29. Qxf6
{[%clk 0:01:20.1]} 1-0

[Event "Early-Titled-Tuesday-Blitz-January-30-2024"]
[Site "Chess.com"]
[Date "2024.01.30"]
[Round "11"]
[White "Onthequiet"]
[Black "xakevicius91"]
[Result "0-1"]
[WhiteElo "2429"]
[BlackElo "2598"]
[TimeControl "180+1"]
[EndTime "10:10:50 PST"]
[Termination "xakevicius91 won by resignation"]

1. d4 {[%clk 0:02:48.9]} 1... Nf6 {[%clk 0:02:58.7]} 2. Nf3 {[%clk 0:02:49.3]}
2... e6 {[%clk 0:02:58.8]} 3. a3 {[%clk 0:02:47.5]} 3... c5 {[%clk 0:02:55.6]}
4. e3 {[%clk 0:02:46.5]} 4... b6 {[%clk 0:02:55.4]} 5. Bd3 {[%clk 0:02:45.7]}
5... Bb7 {[%clk 0:02:55]} 6. Nbd2 {[%clk 0:02:46.2]} 6... d5 {[%clk 0:02:53.3]}
7. b3 {[%clk 0:02:44.9]} 7... Bd6 {[%clk 0:02:53.3]} 8. Bb2 {[%clk 0:02:44.2]}
8... O-O {[%clk 0:02:53.8]} 9. O-O {[%clk 0:02:44.2]} 9... Nc6 {[%clk
0:02:54.1]} 10. Ne5 {[%clk 0:02:43.4]} 10... Rc8 {[%clk 0:02:54.1]} 11. f4
{[%clk 0:02:43.1]} 11... Ne7 {[%clk 0:02:52.6]} 12. Qe1 {[%clk 0:02:37.9]} 12...
Ne4 {[%clk 0:02:46.8]} 13. Rd1 {[%clk 0:02:35.2]} 13... Nf5 {[%clk 0:02:43.8]}
14. Ndf3 {[%clk 0:02:17.3]} 14... cxd4 {[%clk 0:02:41.5]} 15. exd4 {[%clk
0:02:14.5]} 15... Be7 {[%clk 0:02:34.1]} 16. g4 {[%clk 0:02:08.1]} 16... Nfd6
{[%clk 0:02:23.8]} 17. g5 {[%clk 0:01:41.3]} 17... f6 {[%clk 0:02:23]} 18. gxf6
{[%clk 0:01:37.5]} 18... gxf6 {[%clk 0:02:23.9]} 19. Ng4 {[%clk 0:01:36.1]}
19... Nf5 {[%clk 0:02:19.8]} 20. Ne3 {[%clk 0:01:28.9]} 20... Nxe3 {[%clk
0:02:08.3]} 21. Qxe3 {[%clk 0:01:29.3]} 21... Kh8 {[%clk 0:02:08]} 22. Kh1
{[%clk 0:01:27.7]} 22... Bd6 {[%clk 0:02:07.7]} 23. c4 {[%clk 0:01:21.9]} 23...
Qe8 {[%clk 0:02:02.2]} 24. b4 {[%clk 0:01:15.9]} 24... Qh5 {[%clk 0:02:00.5]}
25. Rg1 {[%clk 0:01:00.1]} 25... Qf5 {[%clk 0:01:53.5]} 26. Nh4 {[%clk
0:00:23.8]} 26... Qxf4 {[%clk 0:01:48.9]} 27. Qxf4 {[%clk 0:00:22.9]} 27... Bxf4
{[%clk 0:01:49.8]} 28. Rdf1 {[%clk 0:00:16.4]} 28... dxc4 {[%clk 0:01:25.7]} 29.
Rxf4 {[%clk 0:00:14.4]} 29... cxd3 {[%clk 0:01:24.8]} 30. d5 {[%clk 0:00:13.2]}
30... Bxd5 {[%clk 0:01:24]} 31. Kg2 {[%clk 0:00:11.3]} 31... Rc2+ {[%clk
0:01:21.2]} 0-1

[Event "Early-Titled-Tuesday-Blitz-January-30-2024"]
[Site "Chess.com"]
[Date "2024.01.30"]
[Round "11"]
[White "VinzentSpitzl"]
[Black "korkmaz16"]
[Result "1-0"]
[WhiteElo "2619"]
[BlackElo "2468"]
[TimeControl "180+1"]
[EndTime "10:10:51 PST"]
[Termination "VinzentSpitzl won by checkmate"]

1. e4 {[%clk 0:02:59.9]} 1... e6 {[%clk 0:02:58.9]} 2. d4 {[%clk 0:02:59.9]}
2... d5 {[%clk 0:02:59.4]} 3. Nd2 {[%clk 0:03:00.6]} 3... Nf6 {[%clk 0:02:59.9]}
4. e5 {[%clk 0:03:01.1]} 4... Nfd7 {[%clk 0:03:00.4]} 5. Bd3 {[%clk 0:03:01.8]}
5... c5 {[%clk 0:03:00.9]} 6. c3 {[%clk 0:03:02.4]} 6... Nc6 {[%clk 0:03:01.4]}
7. Ne2 {[%clk 0:03:02.8]} 7... Qb6 {[%clk 0:03:01.9]} 8. Nf3 {[%clk 0:03:01.1]}
8... cxd4 {[%clk 0:03:02.4]} 9. cxd4 {[%clk 0:03:01.2]} 9... f6 {[%clk 0:03:03]}
10. exf6 {[%clk 0:03:00.2]} 10... Nxf6 {[%clk 0:03:03.6]} 11. O-O {[%clk
0:02:59.6]} 11... Bd6 {[%clk 0:03:04.1]} 12. Bf4 {[%clk 0:02:53.6]} 12... Bxf4
{[%clk 0:03:03]} 13. Nxf4 {[%clk 0:02:54.5]} 13... O-O {[%clk 0:03:03.3]} 14. g3
{[%clk 0:02:54.2]} 14... Qxb2 {[%clk 0:03:01.5]} 15. Re1 {[%clk 0:02:49.2]}
15... Kh8 {[%clk 0:02:58.9]} 16. Rb1 {[%clk 0:02:44.3]} 16... Qxa2 {[%clk
0:02:58.1]} 17. Ne5 {[%clk 0:02:27.7]} 17... Nxe5 {[%clk 0:02:48.1]} 18. dxe5
{[%clk 0:02:26.3]} 18... Ne4 {[%clk 0:02:44.2]} 19. Bxe4 {[%clk 0:01:41]} 19...
dxe4 {[%clk 0:02:42.8]} 20. Qd6 {[%clk 0:01:41.4]} 20... Kg8 {[%clk 0:02:37.2]}
21. Rbc1 {[%clk 0:01:32.9]} 21... Qa5 {[%clk 0:02:14.4]} 22. Red1 {[%clk
0:01:12.6]} 22... Qb6 {[%clk 0:01:54.3]} 23. Qe7 {[%clk 0:01:07.3]} 23... Qb2
{[%clk 0:01:32.5]} 24. Rc5 {[%clk 0:00:12.7]} 24... b6 {[%clk 0:01:26.5]} 25.
Rd8 {[%clk 0:00:09.6]} 25... Rxd8 {[%clk 0:01:15.4]} 26. Qxd8+ {[%clk
0:00:09.3]} 26... Kf7 {[%clk 0:01:15.2]} 27. Rc7+ {[%clk 0:00:09.2]} 27... Bd7
{[%clk 0:01:15.1]} 28. Rxd7# {[%clk 0:00:09.6]} 1-0

[Event "Early-Titled-Tuesday-Blitz-January-30-2024"]
[Site "Chess.com"]
[Date "2024.01.30"]
[Round "11"]
[White "snowlord"]
[Black "FabianoCaruana"]
[Result "1-0"]
[WhiteElo "2883"]
[BlackElo "3048"]
[TimeControl "180+1"]
[EndTime "10:10:56 PST"]
[Termination "snowlord won by resignation"]

1. e4 {[%clk 0:03:00.9]} 1... Nc6 {[%clk 0:02:59.2]} 2. d4 {[%clk 0:03:00.3]}
2... d5 {[%clk 0:02:59]} 3. e5 {[%clk 0:03:00.8]} 3... Bf5 {[%clk 0:02:58.8]} 4.
c3 {[%clk 0:03:01.4]} 4... e6 {[%clk 0:02:58.8]} 5. Be2 {[%clk 0:03:01.1]} 5...
f6 {[%clk 0:02:57.9]} 6. f4 {[%clk 0:03:01.4]} 6... Qd7 {[%clk 0:02:54.7]} 7.
Nf3 {[%clk 0:03:00.3]} 7... O-O-O {[%clk 0:02:54.6]} 8. O-O {[%clk 0:03:00.7]}
8... Be7 {[%clk 0:02:49.4]} 9. b4 {[%clk 0:02:59.6]} 9... h5 {[%clk 0:02:46.6]}
10. Nbd2 {[%clk 0:02:57.8]} 10... Nh6 {[%clk 0:02:43.7]} 11. Nb3 {[%clk
0:02:57.3]} 11... Be4 {[%clk 0:02:38.6]} 12. Nfd2 {[%clk 0:02:52.4]} 12... f5
{[%clk 0:02:33.5]} 13. Nxe4 {[%clk 0:02:40.4]} 13... fxe4 {[%clk 0:02:32.4]} 14.
Bxh5 {[%clk 0:02:41]} 14... Nf5 {[%clk 0:02:30.2]} 15. Bg4 {[%clk 0:02:40.7]}
15... Rdf8 {[%clk 0:02:27.1]} 16. a4 {[%clk 0:02:39]} 16... Nd8 {[%clk
0:02:24.3]} 17. b5 {[%clk 0:02:37.3]} 17... Nf7 {[%clk 0:02:21]} 18. Rb1 {[%clk
0:02:29]} 18... Kb8 {[%clk 0:02:17.7]} 19. Qe2 {[%clk 0:02:24.7]} 19... g5
{[%clk 0:02:08.3]} 20. a5 {[%clk 0:02:20.4]} 20... gxf4 {[%clk 0:01:59.6]} 21.
Bxf4 {[%clk 0:02:20.7]} 21... Qd8 {[%clk 0:01:56.4]} 22. Bxf5 {[%clk 0:01:56.2]}
22... exf5 {[%clk 0:01:53.2]} 23. e6 {[%clk 0:01:57.1]} 23... Nd6 {[%clk
0:01:49.5]} 24. Nc5 {[%clk 0:01:56.8]} 24... Rfg8 {[%clk 0:01:46.4]} 25. b6
{[%clk 0:01:56.5]} 25... cxb6 {[%clk 0:01:30.8]} 26. axb6 {[%clk 0:01:55.8]}
26... Rg4 {[%clk 0:01:20.3]} 27. Be5 {[%clk 0:01:45.3]} 27... Rhg8 {[%clk
0:01:17.2]} 28. g3 {[%clk 0:01:30]} 28... Ka8 {[%clk 0:01:09.5]} 29. bxa7 {[%clk
0:01:27.2]} 29... Qa5 {[%clk 0:00:57.1]} 30. Qb2 {[%clk 0:01:19]} 30... b5
{[%clk 0:00:54.8]} 31. Bxd6 {[%clk 0:00:47.1]} 31... Bxd6 {[%clk 0:00:55.7]} 32.
Qb3 {[%clk 0:00:47.8]} 1-0

[Event "Early-Titled-Tuesday-Blitz-January-30-2024"]
[Site "Chess.com"]
[Date "2024.01.30"]
[Round "11"]
[White "stollenmonster"]
[Black "noblerone"]
[Result "1-0"]
[WhiteElo "2871"]
[BlackElo "2487"]
[TimeControl "180+1"]
[EndTime "10:11:00 PST"]
[Termination "stollenmonster won on time"]

1. e4 {[%clk 0:03:00.9]} 1... c5 {[%clk 0:02:52.3]} 2. Nf3 {[%clk 0:03:01]} 2...
e6 {[%clk 0:02:48.3]} 3. c4 {[%clk 0:03:00.4]} 3... Nc6 {[%clk 0:02:47.5]} 4.
Nc3 {[%clk 0:03:00.8]} 4... Nd4 {[%clk 0:02:45]} 5. g3 {[%clk 0:03:00.1]} 5...
Nxf3+ {[%clk 0:02:42]} 6. Qxf3 {[%clk 0:02:59.5]} 6... Ne7 {[%clk 0:02:42.9]} 7.
Bg2 {[%clk 0:02:59.8]} 7... Nc6 {[%clk 0:02:42.8]} 8. O-O {[%clk 0:03:00]} 8...
Be7 {[%clk 0:02:36.4]} 9. d3 {[%clk 0:03:00.1]} 9... Nd4 {[%clk 0:02:31.7]} 10.
Qd1 {[%clk 0:02:59.8]} 10... O-O {[%clk 0:02:32.3]} 11. Ne2 {[%clk 0:02:59.9]}
11... Bf6 {[%clk 0:02:26.7]} 12. Be3 {[%clk 0:02:59.9]} 12... Nxe2+ {[%clk
0:02:15]} 13. Qxe2 {[%clk 0:03:00.8]} 13... d6 {[%clk 0:02:14.3]} 14. Rad1
{[%clk 0:03:01.2]} 14... Qc7 {[%clk 0:02:05.4]} 15. d4 {[%clk 0:02:58.3]} 15...
cxd4 {[%clk 0:01:45.2]} 16. Bxd4 {[%clk 0:02:59.2]} 16... Bxd4 {[%clk
0:01:45.5]} 17. Rxd4 {[%clk 0:03:00.1]} 17... e5 {[%clk 0:01:45.8]} 18. Rd2
{[%clk 0:02:59.3]} 18... Be6 {[%clk 0:01:46.1]} 19. b3 {[%clk 0:02:59.5]} 19...
Rfd8 {[%clk 0:01:41.3]} 20. Rfd1 {[%clk 0:02:59.9]} 20... a5 {[%clk 0:01:37.6]}
21. Qe3 {[%clk 0:02:53.5]} 21... b6 {[%clk 0:01:35.2]} 22. h4 {[%clk 0:02:50.7]}
22... a4 {[%clk 0:01:30.3]} 23. Kh2 {[%clk 0:02:51.1]} 23... axb3 {[%clk
0:01:27.6]} 24. axb3 {[%clk 0:02:51.8]} 24... Ra3 {[%clk 0:01:24.9]} 25. Rd3
{[%clk 0:02:51.5]} 25... h6 {[%clk 0:01:22.8]} 26. f4 {[%clk 0:02:48.5]} 26...
Bg4 {[%clk 0:01:04.8]} 27. Qd2 {[%clk 0:02:46.6]} 27... Bxd1 {[%clk 0:01:02.7]}
28. Qxd1 {[%clk 0:02:46.9]} 28... Raa8 {[%clk 0:00:54]} 29. Qg4 {[%clk
0:02:45.8]} 29... Qe7 {[%clk 0:00:52.7]} 30. f5 {[%clk 0:02:40.5]} 30... Ra2
{[%clk 0:00:50.5]} 31. Kh3 {[%clk 0:02:39]} 31... Kh8 {[%clk 0:00:43.7]} 32. Qd1
{[%clk 0:02:33.9]} 32... Qc7 {[%clk 0:00:40.9]} 33. Rd5 {[%clk 0:02:29.1]} 33...
Rb2 {[%clk 0:00:36.2]} 34. Bf3 {[%clk 0:02:26]} 34... Qb8 {[%clk 0:00:33.7]} 35.
f6 {[%clk 0:02:25.4]} 35... g6 {[%clk 0:00:31.1]} 36. Bg4 {[%clk 0:02:16]} 36...
Kh7 {[%clk 0:00:27.7]} 37. h5 {[%clk 0:02:15.6]} 37... Qc7 {[%clk 0:00:25.1]}
38. hxg6+ {[%clk 0:02:12.7]} 38... fxg6 {[%clk 0:00:26]} 39. Be6 {[%clk
0:02:10.8]} 39... Rf8 {[%clk 0:00:25.4]} 40. Rxd6 {[%clk 0:02:08.9]} 40... Qc5
{[%clk 0:00:17.1]} 41. Rd7+ {[%clk 0:02:08.6]} 41... Kh8 {[%clk 0:00:14.2]} 42.
Qc1 {[%clk 0:02:08.8]} 42... Rh2+ {[%clk 0:00:09]} 43. Kxh2 {[%clk 0:02:07.4]}
43... Qf2+ {[%clk 0:00:09.3]} 44. Kh3 {[%clk 0:02:07.4]} 44... g5 {[%clk
0:00:08.4]} 45. Qd1 {[%clk 0:01:59.1]} 45... Qxf6 {[%clk 0:00:06.5]} 46. Bf5
{[%clk 0:01:58.7]} 46... Qc6 {[%clk 0:00:03.8]} 47. Qd6 {[%clk 0:01:52.1]} 47...
Qxd6 {[%clk 0:00:03]} 48. Rxd6 {[%clk 0:01:52.5]} 1-0

[Event "Early-Titled-Tuesday-Blitz-January-30-2024"]
[Site "Chess.com"]
[Date "2024.01.30"]
[Round "11"]
[White "viktorgen2021"]
[Black "esrosenberg"]
[Result "1-0"]
[WhiteElo "2572"]
[BlackElo "2413"]
[TimeControl "180+1"]
[EndTime "10:11:06 PST"]
[Termination "viktorgen2021 won by resignation"]

1. d4 {[%clk 0:02:56.7]} 1... d5 {[%clk 0:02:58.8]} 2. c4 {[%clk 0:02:55.2]}
2... c6 {[%clk 0:02:58.4]} 3. Nf3 {[%clk 0:02:54.6]} 3... Nf6 {[%clk 0:02:58.5]}
4. e3 {[%clk 0:02:52.1]} 4... a6 {[%clk 0:02:57.2]} 5. c5 {[%clk 0:02:47]} 5...
Bf5 {[%clk 0:02:55.2]} 6. Bd3 {[%clk 0:02:44.9]} 6... e6 {[%clk 0:02:54.1]} 7.
Qc2 {[%clk 0:02:30.8]} 7... Bxd3 {[%clk 0:02:52.3]} 8. Qxd3 {[%clk 0:02:31.7]}
8... Nbd7 {[%clk 0:02:48.2]} 9. Nc3 {[%clk 0:02:31.2]} 9... g6 {[%clk
0:02:43.6]} 10. O-O {[%clk 0:02:31.1]} 10... Bg7 {[%clk 0:02:43.8]} 11. e4
{[%clk 0:02:31.5]} 11... dxe4 {[%clk 0:02:43.4]} 12. Nxe4 {[%clk 0:02:32.4]}
12... Nxe4 {[%clk 0:02:43.8]} 13. Qxe4 {[%clk 0:02:33.3]} 13... O-O {[%clk
0:02:44.1]} 14. Bf4 {[%clk 0:02:28.5]} 14... Re8 {[%clk 0:02:41]} 15. Rad1
{[%clk 0:02:25.1]} 15... Qa5 {[%clk 0:02:38.5]} 16. a3 {[%clk 0:02:23.8]} 16...
Rad8 {[%clk 0:02:36.8]} 17. Bg5 {[%clk 0:02:12.1]} 17... Rc8 {[%clk 0:02:30.8]}
18. Rfe1 {[%clk 0:02:07.1]} 18... Qa4 {[%clk 0:02:23.1]} 19. Qe2 {[%clk
0:01:55.2]} 19... h6 {[%clk 0:02:09]} 20. Bf4 {[%clk 0:01:53.6]} 20... g5 {[%clk
0:02:08.6]} 21. Bg3 {[%clk 0:01:47.6]} 21... Nf6 {[%clk 0:02:01.5]} 22. Ne5
{[%clk 0:01:44.7]} 22... Rcd8 {[%clk 0:02:01.1]} 23. Nc4 {[%clk 0:01:38.2]}
23... Qb3 {[%clk 0:01:22.5]} 24. Nd6 {[%clk 0:01:33.8]} 24... Re7 {[%clk
0:01:22.5]} 25. h4 {[%clk 0:01:26.3]} 25... g4 {[%clk 0:01:09.8]} 26. Be5 {[%clk
0:01:25.6]} 26... h5 {[%clk 0:01:06.5]} 27. Qd2 {[%clk 0:01:15.9]} 27... Nh7
{[%clk 0:00:55.1]} 28. Bxg7 {[%clk 0:01:12.5]} 28... Kxg7 {[%clk 0:00:56]} 29.
Nf5+ {[%clk 0:01:12.9]} 29... exf5 {[%clk 0:00:55.8]} 30. Rxe7 {[%clk 0:01:13]}
30... Nf6 {[%clk 0:00:48]} 31. Qg5+ {[%clk 0:00:55.9]} 31... Kf8 {[%clk
0:00:48.1]} 32. Rde1 {[%clk 0:00:55.9]} 32... Ne4 {[%clk 0:00:39.8]} 33. R7xe4
{[%clk 0:00:53.6]} 33... fxe4 {[%clk 0:00:40.1]} 34. Qxd8+ {[%clk 0:00:52.9]}
34... Kg7 {[%clk 0:00:40.8]} 35. Qg5+ {[%clk 0:00:52.9]} 35... Kf8 {[%clk
0:00:41]} 36. Rxe4 {[%clk 0:00:49.1]} 36... Qxb2 {[%clk 0:00:40.4]} 37. Qh6+
{[%clk 0:00:46.1]} 1-0

[Event "Early-Titled-Tuesday-Blitz-January-30-2024"]
[Site "Chess.com"]
[Date "2024.01.30"]
[Round "11"]
[White "bulletteemo"]
[Black "Chernobay_Artem"]
[Result "1/2-1/2"]
[WhiteElo "2541"]
[BlackElo "2654"]
[TimeControl "180+1"]
[EndTime "10:11:07 PST"]
[Termination "Game drawn by repetition"]

1. e4 {[%clk 0:02:04.4]} 1... e6 {[%clk 0:02:58.6]} 2. d4 {[%clk 0:02:02.8]}
2... d5 {[%clk 0:02:58.8]} 3. exd5 {[%clk 0:02:03.4]} 3... exd5 {[%clk
0:02:58.9]} 4. Nf3 {[%clk 0:02:04.1]} 4... Nf6 {[%clk 0:02:58.8]} 5. Bd3 {[%clk
0:02:04.5]} 5... Bd6 {[%clk 0:02:58.5]} 6. Qe2+ {[%clk 0:02:05]} 6... Qe7 {[%clk
0:02:51.6]} 7. Qxe7+ {[%clk 0:02:04.1]} 7... Kxe7 {[%clk 0:02:48.9]} 8. O-O
{[%clk 0:02:04.5]} 8... Re8 {[%clk 0:02:48.5]} 9. Bg5 {[%clk 0:02:02]} 9... Kf8
{[%clk 0:02:48.4]} 10. Nc3 {[%clk 0:01:56.7]} 10... c6 {[%clk 0:02:41.4]} 11.
Bxf6 {[%clk 0:01:40.4]} 11... gxf6 {[%clk 0:02:41.3]} 12. Bxh7 {[%clk
0:01:37.2]} 12... f5 {[%clk 0:02:35.3]} 13. Nh4 {[%clk 0:01:37.3]} 13... f4
{[%clk 0:02:22]} 14. Bd3 {[%clk 0:01:25.9]} 14... Be7 {[%clk 0:02:11.2]} 15. Nf5
{[%clk 0:01:17.8]} 15... Bf6 {[%clk 0:02:10.2]} 16. Nd6 {[%clk 0:00:51.8]} 16...
Rd8 {[%clk 0:02:08.5]} 17. Nxc8 {[%clk 0:00:52.2]} 17... Rxc8 {[%clk 0:02:09.4]}
18. Ne2 {[%clk 0:00:51.8]} 18... f3 {[%clk 0:02:09]} 19. gxf3 {[%clk 0:00:52.1]}
19... Re8 {[%clk 0:02:07.6]} 20. c3 {[%clk 0:00:51.7]} 20... Nd7 {[%clk
0:02:05.5]} 21. Ng3 {[%clk 0:00:44.6]} 21... Bg5 {[%clk 0:02:00.8]} 22. Nf5
{[%clk 0:00:38.9]} 22... Bf4 {[%clk 0:02:00.1]} 23. h4 {[%clk 0:00:37.6]} 23...
Nf6 {[%clk 0:01:57.4]} 24. Kg2 {[%clk 0:00:37.4]} 24... Re6 {[%clk 0:01:53.8]}
25. a4 {[%clk 0:00:35.4]} 25... Rae8 {[%clk 0:01:49.9]} 26. a5 {[%clk 0:00:36]}
26... Nh5 {[%clk 0:01:41.7]} 27. Ng3 {[%clk 0:00:17.7]} 27... Nf6 {[%clk
0:00:53.9]} 28. Nf5 {[%clk 0:00:17.9]} 28... Nh5 {[%clk 0:00:53.2]} 29. Ng3
{[%clk 0:00:17.8]} 29... Nf6 {[%clk 0:00:53.3]} 30. Nf5 {[%clk 0:00:12.3]}
1/2-1/2